{"text_format":"2","workbook":"xlsx","n_sheets":2,"sheets":["Лист1","Лист1 (2)"],"not_rendered":{"charts":0,"images":0,"macros":0,"external_links":0,"defined_names":0,"comments":0,"pivot_tables":0},"unopened":[],"bounds":{"document_bytes":16777216,"sheet_cells":100000,"run_cost":"one","rows_first":2000,"rows_last":500,"rows_between":2000,"halvings":0,"cell_chars":16384,"cell_head_chars":4096},"cells_cut":0,"cells_raw":0,"read":"whole","date_system":"1900"}

{"sheet":"Лист1","index":0,"n_rows":300,"n_cols":29,"rows_kept":300,"cut":false,"hidden":false,"merged":[]}
[{"$nulls":5},{"$f":"COUNTIF(F2:F300,TRUE)","v":10},{"$f":"COUNTIF(G2:G300,TRUE)","v":7},{"$f":"COUNTIF(H2:H300,TRUE)","v":2},{"$f":"B4","v":"(Denim Demedj)"}]
[{"$nulls":8},"Титулы в КТ 46 сезона:","Золото",{"$f":"F1","v":10},"(",{"$f":"ROUND(K2/AC2*100,2)","v":52.63},"%",")","Серебро",{"$f":"G1","v":7},"(",{"$f":"ROUND(Q2/AC2*100,2)","v":36.840000000000003},"%",")","Бронза",{"$f":"H1","v":2},"(",{"$f":"ROUND(W2/AC2*100,2)","v":10.53},"%",")","Итого",{"$f":"K2+Q2+W2","v":19}]
[{"$nulls":8},"Титулы в КТ 1-45 сезон:","Золото",65,"(",{"$f":"ROUND(K3/AC3*100,2)","v":32.18},"%",")","Серебро",64,"(",{"$f":"ROUND(Q3/AC3*100,2)","v":31.68},"%",")","Бронза",73,"(",{"$f":"ROUND(W3/AC3*100,2)","v":36.14},"%",")","Итого",{"$f":"K3+Q3+W3","v":202}]
[" ---->","(Denim Demedj)","Алай",46,"Бронзовый призер ОКТ \"Аркадный 1450\"",{"$f":"EXACT(LEFT($E4,3),\"Поб\")","v":false},{"$f":"EXACT(LEFT($E4,3),\"Фин\")","v":false},{"$f":"EXACT(LEFT($E4,3),\"Бро\")","v":true},"Титулы в КТ 1-46 сезон:","Золото",{"$f":"K2+K3","v":75},"(",33.94,"%",")","Серебро",{"$f":"Q2+Q3","v":71},"(",32.130000000000003,"%",")","Бронза",{"$f":"W2+W3","v":75},"(",33.94,"%",")","Итого",221]
[null,"(Denim Demedj)","Насарава Юнайтед",46,"Победитель ОКТ \"Аркадный 1450 В\"",{"$f":"EXACT(LEFT($E5,3),\"Поб\")","v":true},{"$f":"EXACT(LEFT($E5,3),\"Фин\")","v":false},{"$f":"EXACT(LEFT($E5,3),\"Бро\")","v":false}]
[null,"(Denim Demedj)","Симба",46,"Финалист ОКТ \"Аркадий 9\"",false,true,false]
[null,"(Denim Demedj)","Луни Тьюнз",46,"Победитель ОКТ \"Аркадий 12\"",true,false,false]
[null,"(Denim Demedj)","Чайка ФК",46,"Финалист ОКТ \"Аркадий 5\"",false,true,false]
[null,"(Denim Demedj)","ПМЦ Поставы",46,"Финалист ОКТ \"Аркадий 13\"",false,true,false]
[null,"(Denim Demedj)","ПМЦ Поставы",46,"Победитель ОКТ \"Золото ацтеков-46-950\"",true,false,false]
[null,"(Denim Demedj)","Луни Тьюнз",46,"Победитель ОКТ \"Аркадий 32\"",true,false,false]
[null,"(Denim Demedj)","Айнтрахт Брауншвейг",46,"Финалист ОКТ \"Аркадий 34\"",false,true,false]
[null,"(Denim Demedj)","Скарборо Атлетик",46,"Победитель ОКТ \"Аркадий 31\"",true,false,false]
[null,"(Denim Demedj)","Симба",46,"Победитель ОКТ \"Аркадий 35\"",true,false,false]
[null,"(Denim Demedj)","Униао де Мадейра",46,"Финалист ОКТ \"Аркадий 26\"",false,true,false]
[null,"(Denim Demedj)","Луни Тьюнз",46,"Победитель ОКТ \"Аркадий 42\"",true,false,false]
[null,"(Denim Demedj)","Насарава Юнайтед",46,"Финалист ОКТ \"Аркадий 37\"",false,true,false]
[null,"(Denim Demedj)","Алай",46,"Победитель ОКТ \"\"Суперлига. Дивизион А\"\"",true,false,false]
[null,"(Denim Demedj)","Мавегру",46,"Победитель ОКТ \"Убойный футбол\"",true,false,false]
[null,"(Denim Demedj)","Насарава Юнайтед",46,"Победитель ОКТ \"Флаг Мартиники №1\"",true,false,false]
[null,"(Denim Demedj)","Луни Тьюнз",46,"Финалист ОКТ \"Moldovan Open Cup-1550\"",false,true,false]
[null,"(Denim Demedj)","Моура",46,"Бронзовый призер ОКТ \"Аркадный 1501\"",false,false,true]
[{"$nulls":5},false,false,false]
[{"$nulls":5},false,false,false]
[{"$nulls":5},false,false,false]
[{"$nulls":5},false,false,false]
[{"$nulls":5},false,false,false]
[{"$nulls":5},false,false,false]
[{"$nulls":5},false,false,false]
[{"$nulls":5},false,false,false]
[{"$nulls":5},false,false,false]
[{"$nulls":5},false,false,false]
[{"$nulls":5},false,false,false]
[{"$nulls":5},false,false,false]
[{"$nulls":5},false,false,false]
[{"$nulls":5},false,false,false]
[{"$nulls":5},false,false,false]
[{"$nulls":5},false,false,false]
[{"$nulls":5},false,false,false]
[{"$nulls":5},false,false,false]
[{"$nulls":5},false,false,false]
[{"$nulls":5},false,false,false]
[{"$nulls":5},false,false,false]
[{"$nulls":5},false,false,false]
[{"$nulls":5},false,false,false]
[{"$nulls":5},false,false,false]
[{"$nulls":5},false,false,false]
[{"$nulls":5},false,false,false]
[{"$nulls":5},false,false,false]
[{"$nulls":5},false,false,false]
[{"$nulls":5},false,false,false]
[{"$nulls":5},false,false,false]
[{"$nulls":5},false,false,false]
[{"$nulls":5},false,false,false]
[{"$nulls":5},false,false,false]
[{"$nulls":5},false,false,false]
[{"$nulls":5},false,false,false]
[{"$nulls":5},false,false,false]
[{"$nulls":5},false,false,false]
[{"$nulls":5},false,false,false]
[{"$nulls":5},false,false,false]
[{"$nulls":5},false,false,false]
[{"$nulls":5},false,false,false]
[{"$nulls":5},false,false,false]
[{"$nulls":5},false,false,false]
[{"$nulls":5},false,false,false]
[{"$nulls":5},false,false,false]
[{"$nulls":5},false,false,false]
[{"$nulls":5},{"$f":"EXACT(LEFT($E69,3),\"Поб\")","v":false},{"$f":"EXACT(LEFT($E69,3),\"Фин\")","v":false},{"$f":"EXACT(LEFT($E69,3),\"Бро\")","v":false}]
[{"$nulls":5},false,false,false]
[{"$nulls":5},false,false,false]
[{"$nulls":5},false,false,false]
[{"$nulls":5},false,false,false]
[{"$nulls":5},false,false,false]
[{"$nulls":5},false,false,false]
[{"$nulls":5},false,false,false]
[{"$nulls":5},false,false,false]
[{"$nulls":5},false,false,false]
[{"$nulls":5},false,false,false]
[{"$nulls":5},false,false,false]
[{"$nulls":5},false,false,false]
[{"$nulls":5},false,false,false]
[{"$nulls":5},false,false,false]
[{"$nulls":5},false,false,false]
[{"$nulls":5},false,false,false]
[{"$nulls":5},false,false,false]
[{"$nulls":5},false,false,false]
[{"$nulls":5},false,false,false]
[{"$nulls":5},false,false,false]
[{"$nulls":5},false,false,false]
[{"$nulls":5},false,false,false]
[{"$nulls":5},false,false,false]
[{"$nulls":5},false,false,false]
[{"$nulls":5},false,false,false]
[{"$nulls":5},false,false,false]
[{"$nulls":5},false,false,false]
[{"$nulls":5},false,false,false]
[{"$nulls":5},false,false,false]
[{"$nulls":5},false,false,false]
[{"$nulls":5},false,false,false]
[{"$nulls":5},false,false,false]
[{"$nulls":5},false,false,false]
[{"$nulls":5},false,false,false]
[{"$nulls":5},false,false,false]
[{"$nulls":5},false,false,false]
[{"$nulls":5},false,false,false]
[{"$nulls":5},false,false,false]
[{"$nulls":5},false,false,false]
[{"$nulls":5},false,false,false]
[{"$nulls":5},false,false,false]
[{"$nulls":5},false,false,false]
[{"$nulls":5},false,false,false]
[{"$nulls":5},false,false,false]
[{"$nulls":5},false,false,false]
[{"$nulls":5},false,false,false]
[{"$nulls":5},false,false,false]
[{"$nulls":5},false,false,false]
[{"$nulls":5},false,false,false]
[{"$nulls":5},false,false,false]
[{"$nulls":5},false,false,false]
[{"$nulls":5},false,false,false]
[{"$nulls":5},false,false,false]
[{"$nulls":5},false,false,false]
[{"$nulls":5},false,false,false]
[{"$nulls":5},false,false,false]
[{"$nulls":5},false,false,false]
[{"$nulls":5},false,false,false]
[{"$nulls":5},false,false,false]
[{"$nulls":5},false,false,false]
[{"$nulls":5},false,false,false]
[{"$nulls":5},false,false,false]
[{"$nulls":5},false,false,false]
[{"$nulls":5},{"$f":"EXACT(LEFT($E133,3),\"Поб\")","v":false},{"$f":"EXACT(LEFT($E133,3),\"Фин\")","v":false},{"$f":"EXACT(LEFT($E133,3),\"Бро\")","v":false}]
[{"$nulls":5},false,false,false]
[{"$nulls":5},false,false,false]
[{"$nulls":5},false,false,false]
[{"$nulls":5},false,false,false]
[{"$nulls":5},false,false,false]
[{"$nulls":5},false,false,false]
[{"$nulls":5},false,false,false]
[{"$nulls":5},false,false,false]
[{"$nulls":5},false,false,false]
[{"$nulls":5},false,false,false]
[{"$nulls":5},false,false,false]
[{"$nulls":5},false,false,false]
[{"$nulls":5},false,false,false]
[{"$nulls":5},false,false,false]
[{"$nulls":5},false,false,false]
[{"$nulls":5},false,false,false]
[{"$nulls":5},false,false,false]
[{"$nulls":5},false,false,false]
[{"$nulls":5},false,false,false]
[{"$nulls":5},false,false,false]
[{"$nulls":5},false,false,false]
[{"$nulls":5},false,false,false]
[{"$nulls":5},false,false,false]
[{"$nulls":5},false,false,false]
[{"$nulls":5},false,false,false]
[{"$nulls":5},false,false,false]
[{"$nulls":5},false,false,false]
[{"$nulls":5},false,false,false]
[{"$nulls":5},false,false,false]
[{"$nulls":5},false,false,false]
[{"$nulls":5},false,false,false]
[{"$nulls":5},false,false,false]
[{"$nulls":5},false,false,false]
[{"$nulls":5},false,false,false]
[{"$nulls":5},false,false,false]
[{"$nulls":5},false,false,false]
[{"$nulls":5},false,false,false]
[{"$nulls":5},false,false,false]
[{"$nulls":5},false,false,false]
[{"$nulls":5},false,false,false]
[{"$nulls":5},false,false,false]
[{"$nulls":5},false,false,false]
[{"$nulls":5},false,false,false]
[{"$nulls":5},false,false,false]
[{"$nulls":5},false,false,false]
[{"$nulls":5},false,false,false]
[{"$nulls":5},false,false,false]
[{"$nulls":5},false,false,false]
[{"$nulls":5},false,false,false]
[{"$nulls":5},false,false,false]
[{"$nulls":5},false,false,false]
[{"$nulls":5},false,false,false]
[{"$nulls":5},false,false,false]
[{"$nulls":5},false,false,false]
[{"$nulls":5},false,false,false]
[{"$nulls":5},false,false,false]
[{"$nulls":5},false,false,false]
[{"$nulls":5},false,false,false]
[{"$nulls":5},false,false,false]
[{"$nulls":5},false,false,false]
[{"$nulls":5},false,false,false]
[{"$nulls":5},false,false,false]
[{"$nulls":5},false,false,false]
[{"$nulls":5},{"$f":"EXACT(LEFT($E197,3),\"Поб\")","v":false},{"$f":"EXACT(LEFT($E197,3),\"Фин\")","v":false},{"$f":"EXACT(LEFT($E197,3),\"Бро\")","v":false}]
[{"$nulls":5},false,false,false]
[{"$nulls":5},false,false,false]
[{"$nulls":5},false,false,false]
[{"$nulls":5},false,false,false]
[{"$nulls":5},false,false,false]
[{"$nulls":5},false,false,false]
[{"$nulls":5},false,false,false]
[{"$nulls":5},false,false,false]
[{"$nulls":5},false,false,false]
[{"$nulls":5},false,false,false]
[{"$nulls":5},false,false,false]
[{"$nulls":5},false,false,false]
[{"$nulls":5},false,false,false]
[{"$nulls":5},false,false,false]
[{"$nulls":5},false,false,false]
[{"$nulls":5},false,false,false]
[{"$nulls":5},false,false,false]
[{"$nulls":5},false,false,false]
[{"$nulls":5},false,false,false]
[{"$nulls":5},false,false,false]
[{"$nulls":5},false,false,false]
[{"$nulls":5},false,false,false]
[{"$nulls":5},false,false,false]
[{"$nulls":5},false,false,false]
[{"$nulls":5},false,false,false]
[{"$nulls":5},false,false,false]
[{"$nulls":5},false,false,false]
[{"$nulls":5},false,false,false]
[{"$nulls":5},false,false,false]
[{"$nulls":5},false,false,false]
[{"$nulls":5},false,false,false]
[{"$nulls":5},false,false,false]
[{"$nulls":5},false,false,false]
[{"$nulls":5},false,false,false]
[{"$nulls":5},false,false,false]
[{"$nulls":5},false,false,false]
[{"$nulls":5},false,false,false]
[{"$nulls":5},false,false,false]
[{"$nulls":5},false,false,false]
[{"$nulls":5},false,false,false]
[{"$nulls":5},false,false,false]
[{"$nulls":5},false,false,false]
[{"$nulls":5},false,false,false]
[{"$nulls":5},false,false,false]
[{"$nulls":5},false,false,false]
[{"$nulls":5},false,false,false]
[{"$nulls":5},false,false,false]
[{"$nulls":5},false,false,false]
[{"$nulls":5},false,false,false]
[{"$nulls":5},false,false,false]
[{"$nulls":5},false,false,false]
[{"$nulls":5},false,false,false]
[{"$nulls":5},false,false,false]
[{"$nulls":5},false,false,false]
[{"$nulls":5},false,false,false]
[{"$nulls":5},false,false,false]
[{"$nulls":5},false,false,false]
[{"$nulls":5},false,false,false]
[{"$nulls":5},false,false,false]
[{"$nulls":5},false,false,false]
[{"$nulls":5},false,false,false]
[{"$nulls":5},false,false,false]
[{"$nulls":5},false,false,false]
[{"$nulls":5},{"$f":"EXACT(LEFT($E261,3),\"Поб\")","v":false},{"$f":"EXACT(LEFT($E261,3),\"Фин\")","v":false},{"$f":"EXACT(LEFT($E261,3),\"Бро\")","v":false}]
[{"$nulls":5},false,false,false]
[{"$nulls":5},false,false,false]
[{"$nulls":5},false,false,false]
[{"$nulls":5},false,false,false]
[{"$nulls":5},false,false,false]
[{"$nulls":5},false,false,false]
[{"$nulls":5},false,false,false]
[{"$nulls":5},false,false,false]
[{"$nulls":5},false,false,false]
[{"$nulls":5},false,false,false]
[{"$nulls":5},false,false,false]
[{"$nulls":5},false,false,false]
[{"$nulls":5},false,false,false]
[{"$nulls":5},false,false,false]
[{"$nulls":5},false,false,false]
[{"$nulls":5},false,false,false]
[{"$nulls":5},false,false,false]
[{"$nulls":5},false,false,false]
[{"$nulls":5},false,false,false]
[{"$nulls":5},false,false,false]
[{"$nulls":5},false,false,false]
[{"$nulls":5},false,false,false]
[{"$nulls":5},false,false,false]
[{"$nulls":5},false,false,false]
[{"$nulls":5},false,false,false]
[{"$nulls":5},false,false,false]
[{"$nulls":5},false,false,false]
[{"$nulls":5},false,false,false]
[{"$nulls":5},false,false,false]
[{"$nulls":5},false,false,false]
[{"$nulls":5},false,false,false]
[{"$nulls":5},false,false,false]
[{"$nulls":5},false,false,false]
[{"$nulls":5},false,false,false]
[{"$nulls":5},false,false,false]
[{"$nulls":5},false,false,false]
[{"$nulls":5},false,false,false]
[{"$nulls":5},false,false,false]
[{"$nulls":5},false,false,false]

{"sheet":"Лист1 (2)","index":1,"n_rows":300,"n_cols":29,"rows_kept":300,"cut":false,"hidden":false,"merged":[]}
[{"$nulls":5},{"$f":"COUNTIF(F2:F300,TRUE)","v":12},{"$f":"COUNTIF(G2:G300,TRUE)","v":10},{"$f":"COUNTIF(H2:H300,TRUE)","v":7},{"$f":"B4","v":"Евгений (НЕВЕРП)"}]
[{"$nulls":8},"Титулы в КТ:","Золото",{"$f":"F1","v":12},"(",{"$f":"ROUND(K2/AC2*100,2)","v":41.38},"%",")","Серебро",{"$f":"G1","v":10},"(",{"$f":"ROUND(Q2/AC2*100,2)","v":34.479999999999997},"%",")","Бронза",{"$f":"H1","v":7},"(",{"$f":"ROUND(W2/AC2*100,2)","v":24.14},"%",")","Итого",{"$f":"K2+Q2+W2","v":29}]
[]
[null,"Евгений (НЕВЕРП)","Гиб Каунти",45,"Финалист ОКТ \"\"Indonesian Mutiara - 17\" (\"Индонезийская Жемчужина - 17\")\"",{"$f":"EXACT(LEFT($E4,3),\"Поб\")","v":false},{"$f":"EXACT(LEFT($E4,3),\"Фин\")","v":true},{"$f":"EXACT(LEFT($E4,3),\"Бро\")","v":false}]
[null,"Евгений (НЕВЕРП)","Сомерсет Троянс",45,"Бронзовый призер ОКТ \"Золото ацтеков-45-1400\"",{"$f":"EXACT(LEFT($E5,3),\"Поб\")","v":false},{"$f":"EXACT(LEFT($E5,3),\"Фин\")","v":false},{"$f":"EXACT(LEFT($E5,3),\"Бро\")","v":true}]
[null,"Евгений (НЕВЕРП)","Хийвинкаан Паллосеура",45,"Бронзовый призер ОКТ \"КТ от Беларуси 1500 (45 сезон)\"",false,false,true]
[null,"Евгений (НЕВЕРП)","Ба",44,"Бронзовый призер ОКТ \"Австралия - 1520\"",false,false,true]
[null,"Евгений (НЕВЕРП)","Бермудские острова",42,"Бронзовый призер ОКТ \"Лига наций от Карибской Лиги\"",false,false,true]
[null,"Евгений (НЕВЕРП)","Аугнаблик",42,"Бронзовый призер ОКТ \"Бермудский треугольник-30\"",false,false,true]
[null,"Евгений (НЕВЕРП)","Аугнаблик",40,"Победитель ОКТ \"\"Indonesian Mutiara - 14\" (\"Индонезийская Жемчужина - 14\")\"",true,false,false]
[null,"Евгений (НЕВЕРП)","Аугнаблик",39,"Победитель ОКТ \"ОРЛЫ КАРФАГЕНА - 39 сезон\"",true,false,false]
[null,"Евгений (НЕВЕРП)","Сомерсет Троянс",39,"Бронзовый призер ОКТ \"Карибский бургер\"",false,false,true]
[null,"Евгений (НЕВЕРП)","Сомерсет Троянс",38,"Финалист ОКТ \"Ого! Комерческий турнир им. Дорогих цен на продукты\"",false,true,false]
[null,"Евгений (НЕВЕРП)","Илойло",38,"Победитель ОКТ \"Open Cup of Lao People's Democratic Republic 38\"",true,false,false]
[null,"Евгений (НЕВЕРП)","Коломбо",37,"Победитель ОКТ \"Карибская лига\"",true,false,false]
[null,"Евгений (НЕВЕРП)","Аугнаблик",37,"Финалист ОКТ \"England Long Cup\"",false,true,false]
[null,"Евгений (НЕВЕРП)","Сомерсет Троянс",36,"Победитель ОКТ \"Турнир от Лиги-638\"",true,false,false]
[null,"Евгений (НЕВЕРП)","Аугнаблик",36,"Победитель ОКТ \"Турнир от Лиги-640\"",true,false,false]
[null,"Евгений (НЕВЕРП)","Коломбо",36,"Финалист ОКТ \"\"Indonesian Mutiara - 05\" (\"Индонезийская Жемчужина - 05\")\"",false,true,false]
[null,"Евгений (НЕВЕРП)","Коломбо",35,"Финалист ОКТ \"Турнир от Лиги-479\"",false,true,false]
[null,"Евгений (НЕВЕРП)","Коломбо",35,"Победитель ОКТ \"Турнир от Лиги-535\"",true,false,false]
[null,"Евгений (НЕВЕРП)","Бермудские острова",33,"Победитель ОКТ \"Карибская Лига Cup\"",true,false,false]
[null,"Евгений (НЕВЕРП)","Сомерсет Троянс",33,"Победитель ОКТ \"Бермудский треугольник-19\"",true,false,false]
[null,"Евгений (НЕВЕРП)","Сомерсет Троянс",33,"Бронзовый призер ОКТ \"Турнир от Лиги-289\"",false,false,true]
[null,"Евгений (НЕВЕРП)","Сомерсет Троянс",32,"Финалист ОКТ \"Бермудский треугольник-18\"",false,true,false]
[null,"Евгений (НЕВЕРП)","Аугнаблик",32,"Финалист ОКТ \"САФАРИ В НИГЕРИИ-13\"",false,true,false]
[null,"Евгений (НЕВЕРП)","Исландия",32,"Финалист ОКТ \"Кубок наций от Карибской Лиги\"",false,true,false]
[null,"Евгений (НЕВЕРП)","Единство Бихач",29,"Победитель ОКТ \"Кубок Карибского Краба\"",true,false,false]
[null,"Евгений (НЕВЕРП)","Африкан Старз",27,"Финалист ОКТ \"Copa Esperanza XIII\"",false,true,false]
[null,"Евгений (НЕВЕРП)","Сомерсет Троянс",26,"Победитель ОКТ \"Бермудский треугольник №9\"",true,false,false]
[null,"Евгений (НЕВЕРП)","Сомерсет Троянс",25,"Финалист ОКТ \"Бермудский треугольник №7\"",false,true,false]
[null,"Евгений (НЕВЕРП)","Кафедрал Квелеман",14,"Победитель ОКТ \"Барбадосский тунец!\"",true,false,false]
[{"$nulls":5},false,false,false]
[{"$nulls":5},false,false,false]
[{"$nulls":5},false,false,false]
[{"$nulls":5},false,false,false]
[{"$nulls":5},false,false,false]
[{"$nulls":5},false,false,false]
[{"$nulls":5},false,false,false]
[{"$nulls":5},false,false,false]
[{"$nulls":5},false,false,false]
[{"$nulls":5},false,false,false]
[{"$nulls":5},false,false,false]
[{"$nulls":5},false,false,false]
[{"$nulls":5},false,false,false]
[{"$nulls":5},false,false,false]
[{"$nulls":5},false,false,false]
[{"$nulls":5},false,false,false]
[{"$nulls":5},false,false,false]
[{"$nulls":5},false,false,false]
[{"$nulls":5},false,false,false]
[{"$nulls":5},false,false,false]
[{"$nulls":5},false,false,false]
[{"$nulls":5},false,false,false]
[{"$nulls":5},false,false,false]
[{"$nulls":5},false,false,false]
[{"$nulls":5},false,false,false]
[{"$nulls":5},false,false,false]
[{"$nulls":5},false,false,false]
[{"$nulls":5},false,false,false]
[{"$nulls":5},false,false,false]
[{"$nulls":5},false,false,false]
[{"$nulls":5},false,false,false]
[{"$nulls":5},false,false,false]
[{"$nulls":5},false,false,false]
[{"$nulls":5},false,false,false]
[{"$nulls":5},false,false,false]
[{"$nulls":5},false,false,false]
[{"$nulls":5},{"$f":"EXACT(LEFT($E69,3),\"Поб\")","v":false},{"$f":"EXACT(LEFT($E69,3),\"Фин\")","v":false},{"$f":"EXACT(LEFT($E69,3),\"Бро\")","v":false}]
[{"$nulls":5},false,false,false]
[{"$nulls":5},false,false,false]
[{"$nulls":5},false,false,false]
[{"$nulls":5},false,false,false]
[{"$nulls":5},false,false,false]
[{"$nulls":5},false,false,false]
[{"$nulls":5},false,false,false]
[{"$nulls":5},false,false,false]
[{"$nulls":5},false,false,false]
[{"$nulls":5},false,false,false]
[{"$nulls":5},false,false,false]
[{"$nulls":5},false,false,false]
[{"$nulls":5},false,false,false]
[{"$nulls":5},false,false,false]
[{"$nulls":5},false,false,false]
[{"$nulls":5},false,false,false]
[{"$nulls":5},false,false,false]
[{"$nulls":5},false,false,false]
[{"$nulls":5},false,false,false]
[{"$nulls":5},false,false,false]
[{"$nulls":5},false,false,false]
[{"$nulls":5},false,false,false]
[{"$nulls":5},false,false,false]
[{"$nulls":5},false,false,false]
[{"$nulls":5},false,false,false]
[{"$nulls":5},false,false,false]
[{"$nulls":5},false,false,false]
[{"$nulls":5},false,false,false]
[{"$nulls":5},false,false,false]
[{"$nulls":5},false,false,false]
[{"$nulls":5},false,false,false]
[{"$nulls":5},false,false,false]
[{"$nulls":5},false,false,false]
[{"$nulls":5},false,false,false]
[{"$nulls":5},false,false,false]
[{"$nulls":5},false,false,false]
[{"$nulls":5},false,false,false]
[{"$nulls":5},false,false,false]
[{"$nulls":5},false,false,false]
[{"$nulls":5},false,false,false]
[{"$nulls":5},false,false,false]
[{"$nulls":5},false,false,false]
[{"$nulls":5},false,false,false]
[{"$nulls":5},false,false,false]
[{"$nulls":5},false,false,false]
[{"$nulls":5},false,false,false]
[{"$nulls":5},false,false,false]
[{"$nulls":5},false,false,false]
[{"$nulls":5},false,false,false]
[{"$nulls":5},false,false,false]
[{"$nulls":5},false,false,false]
[{"$nulls":5},false,false,false]
[{"$nulls":5},false,false,false]
[{"$nulls":5},false,false,false]
[{"$nulls":5},false,false,false]
[{"$nulls":5},false,false,false]
[{"$nulls":5},false,false,false]
[{"$nulls":5},false,false,false]
[{"$nulls":5},false,false,false]
[{"$nulls":5},false,false,false]
[{"$nulls":5},false,false,false]
[{"$nulls":5},false,false,false]
[{"$nulls":5},false,false,false]
[{"$nulls":5},{"$f":"EXACT(LEFT($E133,3),\"Поб\")","v":false},{"$f":"EXACT(LEFT($E133,3),\"Фин\")","v":false},{"$f":"EXACT(LEFT($E133,3),\"Бро\")","v":false}]
[{"$nulls":5},false,false,false]
[{"$nulls":5},false,false,false]
[{"$nulls":5},false,false,false]
[{"$nulls":5},false,false,false]
[{"$nulls":5},false,false,false]
[{"$nulls":5},false,false,false]
[{"$nulls":5},false,false,false]
[{"$nulls":5},false,false,false]
[{"$nulls":5},false,false,false]
[{"$nulls":5},false,false,false]
[{"$nulls":5},false,false,false]
[{"$nulls":5},false,false,false]
[{"$nulls":5},false,false,false]
[{"$nulls":5},false,false,false]
[{"$nulls":5},false,false,false]
[{"$nulls":5},false,false,false]
[{"$nulls":5},false,false,false]
[{"$nulls":5},false,false,false]
[{"$nulls":5},false,false,false]
[{"$nulls":5},false,false,false]
[{"$nulls":5},false,false,false]
[{"$nulls":5},false,false,false]
[{"$nulls":5},false,false,false]
[{"$nulls":5},false,false,false]
[{"$nulls":5},false,false,false]
[{"$nulls":5},false,false,false]
[{"$nulls":5},false,false,false]
[{"$nulls":5},false,false,false]
[{"$nulls":5},false,false,false]
[{"$nulls":5},false,false,false]
[{"$nulls":5},false,false,false]
[{"$nulls":5},false,false,false]
[{"$nulls":5},false,false,false]
[{"$nulls":5},false,false,false]
[{"$nulls":5},false,false,false]
[{"$nulls":5},false,false,false]
[{"$nulls":5},false,false,false]
[{"$nulls":5},false,false,false]
[{"$nulls":5},false,false,false]
[{"$nulls":5},false,false,false]
[{"$nulls":5},false,false,false]
[{"$nulls":5},false,false,false]
[{"$nulls":5},false,false,false]
[{"$nulls":5},false,false,false]
[{"$nulls":5},false,false,false]
[{"$nulls":5},false,false,false]
[{"$nulls":5},false,false,false]
[{"$nulls":5},false,false,false]
[{"$nulls":5},false,false,false]
[{"$nulls":5},false,false,false]
[{"$nulls":5},false,false,false]
[{"$nulls":5},false,false,false]
[{"$nulls":5},false,false,false]
[{"$nulls":5},false,false,false]
[{"$nulls":5},false,false,false]
[{"$nulls":5},false,false,false]
[{"$nulls":5},false,false,false]
[{"$nulls":5},false,false,false]
[{"$nulls":5},false,false,false]
[{"$nulls":5},false,false,false]
[{"$nulls":5},false,false,false]
[{"$nulls":5},false,false,false]
[{"$nulls":5},false,false,false]
[{"$nulls":5},{"$f":"EXACT(LEFT($E197,3),\"Поб\")","v":false},{"$f":"EXACT(LEFT($E197,3),\"Фин\")","v":false},{"$f":"EXACT(LEFT($E197,3),\"Бро\")","v":false}]
[{"$nulls":5},false,false,false]
[{"$nulls":5},false,false,false]
[{"$nulls":5},false,false,false]
[{"$nulls":5},false,false,false]
[{"$nulls":5},false,false,false]
[{"$nulls":5},false,false,false]
[{"$nulls":5},false,false,false]
[{"$nulls":5},false,false,false]
[{"$nulls":5},false,false,false]
[{"$nulls":5},false,false,false]
[{"$nulls":5},false,false,false]
[{"$nulls":5},false,false,false]
[{"$nulls":5},false,false,false]
[{"$nulls":5},false,false,false]
[{"$nulls":5},false,false,false]
[{"$nulls":5},false,false,false]
[{"$nulls":5},false,false,false]
[{"$nulls":5},false,false,false]
[{"$nulls":5},false,false,false]
[{"$nulls":5},false,false,false]
[{"$nulls":5},false,false,false]
[{"$nulls":5},false,false,false]
[{"$nulls":5},false,false,false]
[{"$nulls":5},false,false,false]
[{"$nulls":5},false,false,false]
[{"$nulls":5},false,false,false]
[{"$nulls":5},false,false,false]
[{"$nulls":5},false,false,false]
[{"$nulls":5},false,false,false]
[{"$nulls":5},false,false,false]
[{"$nulls":5},false,false,false]
[{"$nulls":5},false,false,false]
[{"$nulls":5},false,false,false]
[{"$nulls":5},false,false,false]
[{"$nulls":5},false,false,false]
[{"$nulls":5},false,false,false]
[{"$nulls":5},false,false,false]
[{"$nulls":5},false,false,false]
[{"$nulls":5},false,false,false]
[{"$nulls":5},false,false,false]
[{"$nulls":5},false,false,false]
[{"$nulls":5},false,false,false]
[{"$nulls":5},false,false,false]
[{"$nulls":5},false,false,false]
[{"$nulls":5},false,false,false]
[{"$nulls":5},false,false,false]
[{"$nulls":5},false,false,false]
[{"$nulls":5},false,false,false]
[{"$nulls":5},false,false,false]
[{"$nulls":5},false,false,false]
[{"$nulls":5},false,false,false]
[{"$nulls":5},false,false,false]
[{"$nulls":5},false,false,false]
[{"$nulls":5},false,false,false]
[{"$nulls":5},false,false,false]
[{"$nulls":5},false,false,false]
[{"$nulls":5},false,false,false]
[{"$nulls":5},false,false,false]
[{"$nulls":5},false,false,false]
[{"$nulls":5},false,false,false]
[{"$nulls":5},false,false,false]
[{"$nulls":5},false,false,false]
[{"$nulls":5},false,false,false]
[{"$nulls":5},{"$f":"EXACT(LEFT($E261,3),\"Поб\")","v":false},{"$f":"EXACT(LEFT($E261,3),\"Фин\")","v":false},{"$f":"EXACT(LEFT($E261,3),\"Бро\")","v":false}]
[{"$nulls":5},false,false,false]
[{"$nulls":5},false,false,false]
[{"$nulls":5},false,false,false]
[{"$nulls":5},false,false,false]
[{"$nulls":5},false,false,false]
[{"$nulls":5},false,false,false]
[{"$nulls":5},false,false,false]
[{"$nulls":5},false,false,false]
[{"$nulls":5},false,false,false]
[{"$nulls":5},false,false,false]
[{"$nulls":5},false,false,false]
[{"$nulls":5},false,false,false]
[{"$nulls":5},false,false,false]
[{"$nulls":5},false,false,false]
[{"$nulls":5},false,false,false]
[{"$nulls":5},false,false,false]
[{"$nulls":5},false,false,false]
[{"$nulls":5},false,false,false]
[{"$nulls":5},false,false,false]
[{"$nulls":5},false,false,false]
[{"$nulls":5},false,false,false]
[{"$nulls":5},false,false,false]
[{"$nulls":5},false,false,false]
[{"$nulls":5},false,false,false]
[{"$nulls":5},false,false,false]
[{"$nulls":5},false,false,false]
[{"$nulls":5},false,false,false]
[{"$nulls":5},false,false,false]
[{"$nulls":5},false,false,false]
[{"$nulls":5},false,false,false]
[{"$nulls":5},false,false,false]
[{"$nulls":5},false,false,false]
[{"$nulls":5},false,false,false]
[{"$nulls":5},false,false,false]
[{"$nulls":5},false,false,false]
[{"$nulls":5},false,false,false]
[{"$nulls":5},false,false,false]
[{"$nulls":5},false,false,false]
[{"$nulls":5},false,false,false]